bitfinex/quotes_BTCUSD_20251104
["timestamp","ask_amount","ask_price","bid_price","bid_amount"]
[1762283357420,1.27373259,100990.0,100980.0,0.00048364]
[1762283357632,1.34386259,100990.0,100980.0,0.00048364]
[1762283358195,0.85174031,100990.0,100980.0,0.00048364]
[1762283358415,0.81667031,100990.0,100980.0,0.00048364]
[1762283358636,0.81667031,100990.0,100980.0,0.01352364]
[1762283358862,0.41197852,101010.0,100980.0,0.2246199]
[1762283358863,0.37691852,101010.0,100980.0,0.2246199]
[1762283359074,0.04512,101020.0,101000.0,0.01602]
[1762283359292,0.61863091,101020.0,101010.0,0.01602]
[1762283359513,0.57351091,101030.0,101010.0,0.01602]
[1762283359714,0.006,101020.0,101010.0,0.01702]
[1762283359834,0.19796189,101030.0,101010.0,0.03204]
[1762283360030,0.19796189,101030.0,101010.0,0.23004012]
[1762283360232,0.19794147,101040.0,101020.0,0.23001773]
[1762283360456,0.19792313,101050.0,101030.0,0.01602]
[1762283360671,0.02121413,101050.0,101040.0,0.01602]
[1762283360879,0.29574596,101080.0,101050.0,0.19792159]
[1762283361086,0.34526078,101080.0,101050.0,0.22996168]
[1762283361312,0.34526078,101080.0,101050.0,0.03204]
[1762283361313,0.24763888,101080.0,101050.0,0.03204]
[1762283361542,0.19790223,101060.0,101050.0,0.03204]
[1762283361942,0.19790223,101060.0,101050.0,0.04806]
[1762283362150,0.19812406,101080.0,101050.0,0.81949003]
[1762283362348,0.21933423,101080.0,101060.0,0.80345236]
[1762283362551,0.02135432,101080.0,101070.0,0.77192589]
[1762283362761,0.02135432,101080.0,101070.0,0.78741356]
[1762283362762,0.00014415,101080.0,101070.0,0.78741356]
[1762283363003,0.00014415,101080.0,101070.0,0.58953091]
[1762283363139,0.00014415,101080.0,101070.0,0.78741356]
[1762283363335,0.00014415,101080.0,101070.0,0.58953091]
[1762283363533,0.00014415,101080.0,101070.0,0.78741356]
[1762283364442,4.15e-06,101080.0,101070.0,0.88517961]
[1762283364648,0.27690702,101130.0,101090.0,0.20773567]
[1762283364849,0.22587598,101130.0,101110.0,0.197804]
[1762283365056,0.02810539,101130.0,101110.0,0.77131463]
[1762283365295,0.20745808,101130.0,101110.0,0.58953091]
[1762283365489,0.20745808,101130.0,101110.0,0.78733373]
[1762283365640,0.00969083,101130.0,101110.0,0.78733373]
[1762283365844,0.20745919,101130.0,101110.0,0.58953091]
[1762283366421,0.00969179,101130.0,101120.0,0.58953091]
[1762283366641,0.00048355,101130.0,101120.0,0.55380481]
[1762283366850,0.00048355,101130.0,101120.0,1.12731572]
[1762283367058,0.00148355,101130.0,101120.0,1.12731572]
[1762283367486,0.26703914,101160.0,101140.0,0.19774427]
[1762283367690,0.29481244,101160.0,101140.0,0.77125623]
[1762283367876,0.0277733,101160.0,101150.0,0.58953091]
[1762283368323,0.2254799,101160.0,101150.0,0.58953091]
[1762283368531,0.2254799,101160.0,101150.0,0.01602]
[1762283368861,0.21627047,101160.0,101150.0,0.01602]
[1762283369451,0.02356387,101160.0,101150.0,0.01602]
[1762283369644,0.01856387,101160.0,101150.0,0.21374614]
[1762283369948,0.02356387,101160.0,101150.0,0.35602]
[1762283370150,0.20285206,101160.0,101140.0,0.97465091]
[1762283370361,0.20285206,101160.0,101140.0,0.40114]
[1762283370721,0.19772614,101150.0,101140.0,0.04512]
[1762283370982,0.19774569,101140.0,101130.0,0.01602]
[1762283371367,0.19774569,101140.0,101130.0,0.03204]
[1762283371926,0.19774569,101140.0,101130.0,0.05024687]
[1762283372130,0.19774569,101140.0,101130.0,0.01820687]
[1762283372318,0.19774569,101140.0,101130.0,0.04462687]
[1762283372522,0.19774569,101140.0,101130.0,0.03141687]
[1762283372962,0.19774569,101140.0,101130.0,0.01820687]
[1762283373124,0.19874569,101140.0,101130.0,0.01820687]
[1762283373744,0.29651174,101140.0,101130.0,0.01820687]
[1762283373950,0.29551174,101140.0,101130.0,0.01820687]
[1762283374374,0.29851174,101140.0,101130.0,0.01820687]
[1762283374988,1.07958871,101140.0,101130.0,0.01820687]
[1762283375481,1.45577099,101140.0,101130.0,0.01820687]
[1762283376521,1.35819493,101140.0,101130.0,0.01820687]
[1762283376752,0.29544128,101140.0,101130.0,0.01820687]
[1762283376956,0.29844128,101140.0,101130.0,0.01820687]
[1762283377881,0.68586128,101140.0,101130.0,0.01820687]
[1762283378083,1.32494219,101140.0,101130.0,0.01820687]
[1762283378510,1.35812447,101140.0,101130.0,0.01820687]
[1762283378712,1.35812447,101140.0,101130.0,1e-08]
[1762283378912,0.37718228,101140.0,101130.0,1e-08]
[1762283379086,0.19774569,101140.0,101130.0,1e-08]
[1762283379291,0.58297244,101150.0,101120.0,0.19778314]
[1762283379496,0.002,101140.0,101130.0,0.01321]
[1762283379702,0.54761244,101150.0,101130.0,0.02642]
[1762283379994,0.20773739,101160.0,101140.0,0.02642]
[1762283380213,0.1978526,101160.0,101140.0,0.21095504]
[1762283380482,0.5378526,101160.0,101140.0,0.01321]
[1762283380660,0.5378526,101160.0,101140.0,0.2109551]
[1762283380901,0.19772614,101150.0,101140.0,0.01321]
[1762283381092,0.19774569,101140.0,101130.0,0.01321]
[1762283381397,0.19774569,101140.0,101120.0,0.57351091]
[1762283381398,0.19776525,101130.0,101110.0,0.21100927]
[1762283381740,0.30539902,101140.0,101110.0,0.2110133]
[1762283381939,0.88205335,101150.0,101130.0,0.21097228]
[1762283381940,0.23308614,101150.0,101130.0,0.21097228]
[1762283382140,0.20773793,101160.0,101140.0,0.01321]
[1762283382339,0.19785202,101160.0,101140.0,0.2241652]
[1762283382539,0.53785202,101160.0,101140.0,0.01321]
[1762283382818,0.53785202,101160.0,101140.0,0.19774411]
[1762283383057,0.1977264,101150.0,101130.0,0.8921375]
[1762283383167,0.54773735,101160.0,101130.0,0.8921375]
[1762283383168,0.53785202,101160.0,101130.0,0.8921375]
[1762283383368,0.19785202,101160.0,101140.0,0.19774327]
[1762283383572,0.19772878,101150.0,101130.0,0.31862659]
[1762283383828,0.19772878,101150.0,101140.0,0.001]
[1762283383975,0.29561933,101160.0,101140.0,0.19874569]
[1762283384175,0.19785328,101160.0,101140.0,0.19874569]
[1762283384510,0.19785328,101160.0,101140.0,0.01421]
[1762283384708,0.19785504,101160.0,101140.0,0.21195233]
[1762283384909,0.19785355,101160.0,101140.0,0.21095233]
[1762283385107,0.000145,101160.0,101150.0,0.01321]
[1762283385307,0.000145,101160.0,101150.0,0.22414614]
[1762283386141,0.000145,101160.0,101150.0,0.02642]
[1762283386363,0.1988516,101160.0,101150.0,0.01321]
[1762283386514,0.001145,101160.0,101150.0,0.01321]
[1762283386754,0.001145,101160.0,101150.0,0.22414614]
[1762283386956,0.001145,101160.0,101150.0,0.01321]
[1762283387157,0.1988516,101160.0,101150.0,0.58672091]
[1762283387359,0.001145,101160.0,101150.0,0.58672091]
[1762283387599,0.1988516,101160.0,101150.0,0.58672091]
[1762283387965,0.001145,101160.0,101150.0,0.79765705]
[1762283388612,0.001145,101160.0,101150.0,1.13765705]
[1762283388771,0.001145,101160.0,101150.0,1.16165705]
[1762283388972,0.001145,101160.0,101150.0,1.13765705]
[1762283389195,0.001145,101160.0,101150.0,0.93993091]
[1762283389196,0.000145,101160.0,101150.0,0.93993091]
[1762283389353,0.000145,101160.0,101150.0,0.94093091]
[1762283389798,0.1978516,101160.0,101150.0,0.59993091]
[1762283389977,0.000145,101160.0,101150.0,0.80065705]
[1762283390177,0.29561765,101160.0,101150.0,0.003]
[1762283390381,0.46449526,101160.0,101150.0,0.003]
[1762283390792,0.74860765,101160.0,101150.0,0.003]
[1762283391283,0.19776331,101140.0,101120.0,0.79005842]
[1762283391482,0.19776331,101140.0,101120.0,0.81405842]
[1762283391719,0.19776525,101130.0,101120.0,0.58254091]
[1762283391925,0.19776525,101130.0,101120.0,0.72301091]
[1762283392162,0.19776525,101130.0,101120.0,0.73204091]
[1762283392500,0.19776525,101130.0,101120.0,0.74107091]
[1762283392752,0.19776525,101130.0,101120.0,0.73304091]
[1762283393135,0.19776525,101130.0,101120.0,0.1495]
[1762283393531,0.19778481,101120.0,101110.0,0.1495]
[1762283393758,0.19780437,101110.0,101100.0,0.00025126]
[1762283394816,0.19780437,101110.0,101100.0,0.00073481]
[1762283395018,0.19780437,101110.0,101100.0,0.00173481]
[1762283395223,0.65188437,101110.0,101100.0,0.00073481]
[1762283395668,0.65288437,101110.0,101100.0,0.00073481]
[1762283396324,0.65388437,101110.0,101100.0,0.00073481]
[1762283397188,0.67513415,101110.0,101100.0,0.00073481]
[1762283397377,0.65388437,101110.0,101100.0,0.00073481]
[1762283397787,0.63497944,101110.0,101100.0,0.00073481]
[1762283400038,0.65388437,101110.0,101100.0,0.00073481]
[1762283400243,0.53980437,101110.0,101100.0,0.00073481]
[1762283400855,1.26357756,101110.0,101100.0,0.00073481]
[1762283400999,1.33874973,101110.0,101100.0,0.00073481]
[1762283401414,1.38382973,101110.0,101100.0,0.00073481]
[1762283401615,1.30865756,101110.0,101100.0,0.00073481]
[1762283402686,1.32986241,101110.0,101100.0,1e-08]
[1762283403242,4.34986239,101110.0,101100.0,1e-08]
[1762283403673,4.34786239,101110.0,101100.0,1e-08]
[1762283403879,4.6343733,101110.0,101100.0,1e-08]
[1762283404076,4.67793072,101110.0,101100.0,1e-08]
[1762283404282,4.73793071,101110.0,101100.0,1e-08]
[1762283404487,3.52892754,101110.0,101100.0,1e-08]
[1762283404899,3.42435149,101110.0,101100.0,1e-08]
[1762283405093,0.43435148,101110.0,101100.0,1e-08]
[1762283405329,0.44335148,101110.0,101100.0,1e-08]
[1762283405532,0.41214664,101110.0,101100.0,1e-08]
[1762283405986,0.74214665,101110.0,101100.0,1e-08]
[1762283406361,0.85788224,101110.0,101100.0,1e-08]
[1762283406570,0.70596437,101110.0,101100.0,1e-08]
[1762283406990,0.36596437,101110.0,101100.0,1e-08]
[1762283407398,0.93947528,101110.0,101100.0,1e-08]
[1762283407609,0.37596436,101110.0,101100.0,1e-08]
[1762283407810,0.86786381,101110.0,101100.0,1e-08]
[1762283408398,0.8778638,101110.0,101100.0,1e-08]
[1762283408601,0.86786381,101110.0,101100.0,1e-08]
[1762283408807,1.5394373,101110.0,101100.0,1e-08]
[1762283409207,3.77328775,101110.0,101100.0,1e-08]
[1762283409413,3.78328774,101110.0,101100.0,1e-08]
[1762283409780,3.78553453,101110.0,101100.0,1e-08]
[1762283409974,3.77328775,101110.0,101100.0,1e-08]
[1762283410177,3.8778638,101110.0,101100.0,1e-08]
[1762283410456,3.88050856,101110.0,101100.0,1e-08]
[1762283410579,3.8778638,101110.0,101100.0,1e-08]
[1762283413573,3.94050855,101110.0,101100.0,1e-08]
[1762283413773,3.94050855,101110.0,101040.0,0.01602]
[1762283413774,0.19792182,101050.0,101040.0,0.01602]
[1762283413972,0.23278182,101050.0,101040.0,0.01616415]
[1762283414307,0.39970858,101050.0,101040.0,0.00014415]
[1762283415874,0.34886182,101050.0,101040.0,0.00014415]
[1762283416093,0.19992182,101050.0,101040.0,0.00014415]
[1762283416294,0.19992182,101050.0,101040.0,0.02808415]
[1762283416295,0.002,101050.0,101040.0,0.02808415]
[1762283416500,0.19992182,101050.0,101040.0,0.00014415]
[1762283416701,0.31400182,101050.0,101040.0,0.00014415]
[1762283417144,0.36319397,101050.0,101040.0,0.00014415]
[1762283417346,0.19792182,101050.0,101040.0,0.00014415]
[1762283417563,0.19792182,101050.0,101040.0,0.02808415]
[1762283417564,0.19992182,101050.0,101040.0,0.02808415]
[1762283418057,0.004,101050.0,101040.0,0.22602555]
[1762283418292,0.19790538,101060.0,101040.0,1.03011487]
[1762283418527,0.34043668,101070.0,101040.0,0.27796533]
[1762283418715,0.34043668,101070.0,101060.0,0.01602]
[1762283418716,0.1979165,101070.0,101060.0,0.01602]
[1762283418915,0.1979165,101070.0,101060.0,0.04396]
[1762283419262,0.23277968,101080.0,101060.0,0.06856]
[1762283419263,0.19791968,101080.0,101060.0,0.06856]
[1762283419460,0.19788265,101070.0,101060.0,0.06856]
[1762283420164,0.19788265,101070.0,101060.0,0.01602]
[1762283420604,0.19788265,101070.0,101060.0,0.04062]
[1762283420863,0.19988265,101070.0,101060.0,0.01602]
[1762283421070,0.19988265,101070.0,101040.0,0.00014415]
[1762283421071,0.19792182,101050.0,101040.0,0.00014415]
[1762283421282,0.19792182,101050.0,101040.0,0.03742415]
[1762283421709,0.19792182,101050.0,101040.0,0.01282415]
[1762283422560,0.19791942,101060.0,101040.0,0.06202415]
[1762283422960,0.19792182,101050.0,101040.0,0.03742415]
[1762283423607,0.19892182,101050.0,101040.0,0.03742415]
[1762283425445,0.19892182,101050.0,101040.0,0.06202415]
[1762283425616,0.19892182,101050.0,101040.0,0.03742415]
[1762283425779,0.19892182,101050.0,101040.0,0.16232415]
[1762283425981,0.19892182,101050.0,101040.0,0.18843269]
[1762283426191,0.001,101050.0,101040.0,0.41097409]
[1762283426394,0.19892182,101050.0,101040.0,0.18843269]
[1762283427276,0.34787447,101050.0,101040.0,0.00165269]
[1762283427715,0.44564052,101050.0,101040.0,0.00165269]
[1762283427916,0.4818228,101050.0,101040.0,0.00165269]
[1762283428289,0.29668787,101050.0,101040.0,0.00165269]
[1762283428946,0.34227787,101050.0,101040.0,0.00165269]
[1762283429573,0.40595787,101050.0,101040.0,0.00165269]
[1762283430572,0.19892182,101050.0,101040.0,0.02625269]
[1762283432143,0.19892182,101050.0,101040.0,0.02357269]
[1762283432568,0.19892182,101050.0,101040.0,0.00165269]
[1762283432827,0.34121447,101050.0,101040.0,0.00165269]
[1762283433080,0.43898052,101050.0,101040.0,0.00165269]
[1762283433971,0.39929787,101050.0,101040.0,0.00165269]
[1762283434171,0.19892182,101050.0,101040.0,0.02357269]
[1762283434523,0.19892182,101050.0,101040.0,0.04549269]
[1762283434917,0.19892182,101050.0,101040.0,0.02357269]
[1762283436353,0.19892182,101050.0,101040.0,0.00165269]
[1762283436710,0.24477347,101050.0,101040.0,0.00165269]
[1762283437039,0.29668787,101050.0,101040.0,0.00165269]
[1762283437282,0.19892182,101050.0,101040.0,0.04549269]
[1762283437491,0.19892182,101050.0,101040.0,0.17307269]
[1762283437706,0.001,101050.0,101040.0,0.19499269]
[1762283437907,0.001,101050.0,101040.0,1.16908363]
[1762283438408,0.001,101050.0,101040.0,1.01958363]
[1762283438592,0.19892182,101050.0,101040.0,0.02357269]
[1762283438804,0.19792182,101050.0,101040.0,0.02357269]
[1762283439008,0.23760433,101050.0,101040.0,0.02357269]
[1762283439291,0.23860433,101050.0,101040.0,0.00565269]
[1762283439495,0.19892182,101050.0,101040.0,0.02757269]
[1762283440091,0.19792182,101050.0,101040.0,0.02357269]
[1762283440296,0.19792182,101050.0,101040.0,0.00165269]
[1762283440500,0.24367333,101050.0,101040.0,0.00365269]
[1762283440911,0.19792182,101050.0,101040.0,0.02557269]
[1762283441112,0.19792182,101050.0,101040.0,0.00365269]
[1762283441453,0.19792182,101050.0,101040.0,0.02557269]
[1762283441930,0.20682251,101050.0,101040.0,0.02557269]
[1762283442156,0.00890069,101050.0,101040.0,1.04817976]
[1762283442356,0.28449503,101110.0,101080.0,0.19785593]
[1762283442357,0.10057817,101110.0,101080.0,0.19785593]
[1762283442547,0.09059881,101110.0,101100.0,0.01302]
[1762283442679,0.02135064,101110.0,101100.0,0.21084393]
[1762283442874,0.29555215,101120.0,101100.0,0.04545]
[1762283443103,0.03133,101130.0,101100.0,0.03243]
[1762283443310,0.20453605,101140.0,101110.0,0.00989021]
[1762283443533,0.11676189,101140.0,101120.0,0.24213419]
[1762283443750,0.11676189,101140.0,101130.0,0.04053]
[1762283443953,0.31450913,101140.0,101110.0,0.20769458]
[1762283444173,0.32688124,101120.0,101100.0,0.23025227]
[1762283444516,0.29555122,101120.0,101100.0,0.23025082]
[1762283444815,0.19778525,101120.0,101100.0,0.25425082]
[1762283445033,0.19778525,101120.0,101110.0,0.04053]
[1762283445236,0.36757412,101140.0,101110.0,0.23833437]
[1762283445439,0.19776563,101130.0,101110.0,0.04053]
[1762283445607,0.19778481,101120.0,101110.0,0.04053]
[1762283446010,0.19778481,101120.0,101110.0,0.23833437]
[1762283446223,0.19778481,101120.0,101110.0,0.04053]
[1762283446446,0.19776563,101130.0,101110.0,0.23833437]
[1762283446651,0.19776563,101130.0,101110.0,0.28257437]
[1762283446854,0.30588412,101140.0,101110.0,0.55112821]
[1762283447091,0.30588412,101140.0,101120.0,0.19778481]
[1762283447597,0.19776525,101130.0,101110.0,0.74893258]
[1762283447807,0.19778481,101120.0,101100.0,1.06137392]
[1762283447983,0.19776525,101130.0,101110.0,0.19780437]
[1762283448972,0.002,101120.0,101110.0,0.22180437]
[1762283449189,0.002,101120.0,101110.0,0.19780437]
[1762283449360,0.002,101120.0,101110.0,0.19880437]
[1762283449595,0.002,101120.0,101110.0,0.22280437]
[1762283449800,0.002,101120.0,101110.0,0.19880437]
[1762283450002,0.002,101120.0,101110.0,0.97495391]
[1762283450222,0.19776589,101130.0,101110.0,0.97395391]
[1762283450425,0.19823079,101140.0,101120.0,0.19778351]
[1762283450635,0.19822924,101140.0,101120.0,0.99793305]
[1762283450846,0.19822924,101140.0,101130.0,0.19776525]
[1762283451082,0.19822924,101140.0,101110.0,0.20869458]
[1762283451286,0.19776525,101130.0,101110.0,0.98484412]
[1762283451484,0.19778481,101120.0,101110.0,0.19880437]
[1762283451688,0.19778481,101120.0,101110.0,0.19780437]
[1762283452096,0.19778481,101120.0,101110.0,0.20080437]
[1762283452310,0.19776552,101130.0,101110.0,0.19780437]
[1762283452433,0.19776552,101130.0,101110.0,0.22180437]
[1762283452638,0.19776552,101130.0,101120.0,0.19778481]
[1762283452840,0.19776525,101130.0,101110.0,0.97495391]
[1762283453050,0.19776525,101130.0,101120.0,0.19778481]
[1762283453255,0.19823109,101140.0,101120.0,0.97393435]
[1762283453929,0.19776525,101130.0,101110.0,0.23269458]
[1762283454091,0.29599714,101140.0,101120.0,0.19778481]
[1762283454314,0.19823109,101140.0,101120.0,0.19778481]
[1762283454612,0.19823035,101140.0,101120.0,0.97393435]
[1762283454839,0.19823035,101140.0,101120.0,0.99793435]
[1762283454963,0.19822924,101140.0,101120.0,0.97393435]
[1762283455163,0.002,101130.0,101120.0,0.97393435]
[1762283455363,0.00048355,101140.0,101130.0,0.19776525]
[1762283456059,0.19822924,101140.0,101120.0,0.97393435]
[1762283456264,0.19822924,101140.0,101120.0,0.19778481]
[1762283456467,0.00048355,101140.0,101130.0,0.19776525]
[1762283457779,0.00048355,101140.0,101130.0,1.07168084]
[1762283457975,0.02120602,101170.0,101160.0,0.1977066]
[1762283458178,0.00014502,101170.0,101160.0,0.1977066]
[1762283458318,0.00014502,101170.0,101160.0,0.2217066]
[1762283458551,0.00014502,101170.0,101160.0,0.1977066]
[1762283458815,0.00014502,101170.0,101160.0,0.97385614]
[1762283459303,0.00214502,101170.0,101160.0,0.1977066]
[1762283459564,0.19983208,101170.0,101150.0,1.0467963]
[1762283459846,0.1977066,101160.0,101140.0,0.99357886]
[1762283460105,0.19772614,101150.0,101140.0,0.77614954]
[1762283460334,0.1977066,101160.0,101140.0,0.58278569]
[1762283460540,0.1977066,101160.0,101140.0,0.38504]
[1762283460754,0.19774569,101140.0,101130.0,0.34]
[1762283460989,0.19774569,101140.0,101130.0,0.53776525]
[1762283461200,0.20759193,101160.0,101140.0,0.19774175]
[1762283461415,0.20759193,101160.0,101150.0,0.19772614]
[1762283461416,0.02119753,101160.0,101150.0,0.19772614]
[1762283461638,0.19783644,101170.0,101150.0,0.19772614]
[1762283461848,0.19783644,101170.0,101140.0,0.19774313]
[1762283461849,0.1977066,101160.0,101140.0,0.19774313]
[1762283462056,0.1977066,101160.0,101140.0,0.19774569]
[1762283462057,0.19772614,101150.0,101140.0,0.19774569]
[1762283462274,0.1977066,101160.0,101140.0,0.19774569]
[1762283462535,0.1977066,101160.0,101130.0,0.55752001]
[1762283462748,0.1977066,101160.0,101140.0,0.19774569]
[1762283462749,0.19772614,101150.0,101140.0,0.19774569]
[1762283462974,0.19774569,101140.0,101130.0,0.34]
[1762283463198,0.19774569,101140.0,101120.0,0.19778447]
[1762283463892,0.19774569,101140.0,101110.0,1.37851272]
[1762283464126,0.23223614,101150.0,101130.0,0.19876525]
[1762283464344,0.21893385,101150.0,101130.0,0.22276525]
[1762283464549,0.21893385,101150.0,101130.0,0.19776525]
[1762283464802,0.19772692,101150.0,101130.0,0.19776525]
[1762283465239,0.19772692,101150.0,101130.0,0.22176525]
[1762283465367,0.21893899,101150.0,101130.0,0.19776525]
[1762283465579,0.21893899,101150.0,101130.0,0.19876525]
[1762283465866,0.21893899,101150.0,101130.0,0.22276525]
[1762283466050,0.19772614,101150.0,101140.0,0.19774569]
[1762283466266,0.1977066,101160.0,101140.0,0.19774569]
[1762283466463,0.24223079,101170.0,101150.0,0.19772614]
[1762283466664,0.19783644,101170.0,101160.0,0.1977066]
[1762283466866,0.19783336,101170.0,101160.0,0.1977066]
[1762283467204,0.00014502,101170.0,101160.0,0.1977066]
[1762283467436,1.09064069,101210.0,101190.0,0.19763845]
[1762283467437,0.23569514,101210.0,101190.0,0.19763845]
[1762283467639,0.00372098,101210.0,101200.0,0.19762845]
[1762283468256,0.20132991,101210.0,101190.0,0.97378799]
[1762283468467,0.20132991,101210.0,101190.0,0.19764798]
[1762283468711,0.19762845,101200.0,101190.0,0.19764725]
[1762283468922,0.19762845,101200.0,101180.0,0.98366613]
[1762283469170,0.19762845,101200.0,101190.0,0.19764798]
[1762283469378,0.19762845,101200.0,101180.0,0.23151659]
[1762283469553,0.19764798,101190.0,101180.0,0.53766752]
[1762283469766,0.19762845,101200.0,101180.0,0.53766752]
[1762283469981,0.19762845,101200.0,101180.0,0.34]
[1762283469982,0.19764798,101190.0,101180.0,0.34]
[1762283470179,0.19764798,101190.0,101170.0,0.34]
[1762283470180,0.19766886,101180.0,101170.0,0.34]
[1762283470352,0.19766886,101180.0,101160.0,0.25261794]
[1762283470550,0.19766886,101180.0,101150.0,0.82456934]
[1762283470780,0.19768706,101170.0,101150.0,0.84856934]
[1762283470998,0.20405422,101190.0,101170.0,0.19768439]
[1762283471232,0.20405422,101190.0,101180.0,0.001]
[1762283471454,0.19766752,101180.0,101160.0,0.34]
[1762283471688,0.19768706,101170.0,101160.0,0.34]
[1762283471912,0.19768706,101170.0,101150.0,0.24272206]
[1762283472137,0.1977066,101160.0,101150.0,0.04514502]
[1762283472354,0.1977066,101160.0,101150.0,0.00014502]
[1762283472802,0.29547265,101160.0,101150.0,0.00014502]
[1762283473021,0.97978955,101160.0,101150.0,0.00014502]
[1762283473234,0.989781,101160.0,101150.0,0.00014502]
[1762283473451,1.38732254,101160.0,101150.0,0.00014502]
[1762283473657,0.19778481,101120.0,101110.0,0.00984783]
[1762283473917,0.19792951,101120.0,101100.0,0.02]
[1762283474336,0.19793031,101120.0,101100.0,0.21782297]
[1762283474548,0.19780437,101110.0,101100.0,0.02]
[1762283475214,0.83858721,101120.0,101100.0,0.02]
[1762283475444,0.29557042,101110.0,101100.0,0.02]
[1762283475660,0.0001447,101120.0,101100.0,0.21782393]
[1762283475868,0.19780437,101110.0,101100.0,0.02]
[1762283476073,0.19792974,101120.0,101100.0,0.02]
[1762283476284,0.0001447,101120.0,101110.0,0.76976127]
[1762283476678,0.0001447,101120.0,101110.0,0.79376127]
[1762283476829,0.0001447,101120.0,101100.0,0.3605891]
[1762283477033,0.19792997,101120.0,101100.0,0.932546]
[1762283477234,0.19780437,101110.0,101100.0,0.406]
[1762283477435,0.23243997,101120.0,101100.0,0.60282393]
[1762283477621,0.33020602,101120.0,101100.0,0.62682393]
[1762283477821,0.29569602,101120.0,101110.0,0.003]
[1762283478003,0.0001447,101120.0,101110.0,0.19780437]
[1762283478650,0.0001447,101120.0,101110.0,0.76976127]
[1762283478826,0.0001447,101120.0,101110.0,0.79376127]
[1762283479280,0.0001447,101120.0,101110.0,0.76976127]
[1762283479478,0.29547265,101160.0,101140.0,0.19774569]
[1762283479686,0.00014489,101160.0,101150.0,0.19772614]
[1762283480116,0.00014489,101160.0,101150.0,0.76968304]
[1762283480517,0.00014489,101160.0,101150.0,0.79368304]
[1762283480882,0.00014489,101160.0,101150.0,1.10968304]
[1762283481093,0.20765566,101200.0,101180.0,0.19766149]
[1762283481300,0.19777447,101200.0,101190.0,0.19764798]
[1762283481536,0.00014486,101200.0,101180.0,0.76961839]
[1762283481756,0.00014486,101200.0,101190.0,0.19764798]
[1762283481972,0.00014486,101200.0,101190.0,1.10960488]
[1762283482173,0.00014486,101200.0,101190.0,0.9569569]
[1762283482380,0.00014486,101200.0,101190.0,1.15460488]
[1762283482582,0.19777331,101200.0,101190.0,0.9569569]
[1762283482808,0.00014486,101200.0,101190.0,1.15460488]
[1762283483012,0.00014486,101200.0,101190.0,0.385]
[1762283483013,0.19777331,101200.0,101190.0,0.385]
[1762283483244,0.00014486,101200.0,101190.0,1.17860488]
[1762283483443,0.00014486,101200.0,101190.0,1.15460488]
[1762283483580,0.00357609,101210.0,101200.0,0.76958535]
[1762283483782,0.00357609,101210.0,101200.0,0.8913514]
[1762283484006,0.00357609,101210.0,101200.0,0.8673514]
[1762283484213,0.0004,101220.0,101200.0,0.8673514]
[1762283484215,0.0004,101220.0,101210.0,0.19760893]
[1762283484416,0.19755202,101240.0,101210.0,1.14574811]
[1762283484598,0.19803335,101240.0,101220.0,0.24258892]
[1762283484803,0.19803335,101240.0,101230.0,0.5719569]
[1762283485273,0.19803335,101240.0,101220.0,0.045]
[1762283485274,0.1975894,101220.0,101200.0,0.10076605]
[1762283485457,0.1975894,101220.0,101210.0,0.045]
[1762283485856,0.19760893,101210.0,101200.0,0.343]
[1762283486196,0.19718819,101220.0,101200.0,0.58262758]
[1762283486197,0.19758989,101220.0,101200.0,0.58262758]
[1762283486427,0.001,101220.0,101210.0,0.5789569]
[1762283486636,0.19757086,101230.0,101210.0,0.58182794]
[1762283486852,0.19756989,101230.0,101220.0,0.5719569]
[1762283487063,0.19803335,101240.0,101220.0,0.76954601]
[1762283487747,0.19803335,101240.0,101220.0,0.5719569]
[1762283487964,0.19756989,101230.0,101210.0,0.78931691]
[1762283488171,0.29533594,101230.0,101210.0,0.00987104]
[1762283488636,0.197571,101230.0,101210.0,0.00987104]
[1762283488880,0.197571,101230.0,101210.0,0.20747974]
[1762283489065,0.19803412,101240.0,101220.0,0.19758845]
[1762283489321,0.19803377,101240.0,101220.0,0.77254448]
[1762283489539,0.00048298,101240.0,101230.0,0.19756989]
[1762283489753,0.00048298,101240.0,101230.0,1.14339783]
[1762283489984,0.19803335,101240.0,101230.0,0.00987104]
[1762283490190,0.1975894,101220.0,101210.0,0.00987104]
[1762283490410,0.1975894,101220.0,101210.0,0.34987104]
[1762283490645,0.1975894,101220.0,101210.0,0.00987104]
[1762283490854,0.1975894,101220.0,101190.0,0.00987104]
[1762283490855,0.19764602,101200.0,101190.0,0.00987104]
[1762283491069,0.19764602,101200.0,101180.0,0.385]
[1762283491070,0.19764798,101190.0,101180.0,0.385]
[1762283491287,0.19764798,101190.0,101170.0,0.83421681]
[1762283491490,0.19766752,101180.0,101170.0,0.045]
[1762283491693,0.19766752,101180.0,101150.0,0.68920687]
[1762283491694,0.19768706,101170.0,101150.0,0.68920687]
[1762283491907,0.19768706,101170.0,101150.0,0.88693298]
[1762283492116,0.19768706,101170.0,101150.0,0.88707784]
[1762283492330,0.19768706,101170.0,101150.0,0.67973885]
[1762283492331,0.1977066,101160.0,101150.0,0.67973885]
[1762283492551,0.1977066,101160.0,101150.0,0.00014486]
[1762283493213,0.19768706,101170.0,101150.0,0.19884439]
[1762283493417,0.1977066,101160.0,101150.0,0.58693525]
[1762283493625,0.1977066,101160.0,101150.0,0.00014486]
[1762283494083,0.1977066,101160.0,101150.0,0.00314486]
[1762283494296,0.1977066,101160.0,101150.0,0.00014486]
[1762283494513,0.34,101170.0,101150.0,0.19786703]
[1762283494720,0.1977066,101160.0,101150.0,0.197871]
[1762283494923,0.19768756,101170.0,101150.0,0.197871]
[1762283495136,0.29543357,101180.0,101160.0,0.19770376]
[1762283495338,0.19768744,101170.0,101150.0,0.7797142]
[1762283495555,0.19768744,101170.0,101150.0,0.00314486]
[1762283495556,0.1977066,101160.0,101150.0,0.00314486]
[1762283495756,0.1977066,101160.0,101150.0,0.00014486]
[1762283496168,0.53768744,101170.0,101150.0,0.198871]
[1762283496388,0.1977066,101160.0,101150.0,0.00114486]
[1762283496640,0.1977066,101160.0,101150.0,0.00014486]
[1762283496848,1.20742955,101160.0,101150.0,0.00114486]
[1762283497059,1.20742955,101160.0,101150.0,0.00014486]
[1762283497268,0.63547265,101160.0,101150.0,0.00014486]
[1762283497480,0.5377066,101160.0,101150.0,0.00114486]
[1762283497693,0.1977066,101160.0,101150.0,0.00114486]
[1762283498135,0.19766752,101180.0,101150.0,0.7708279]
[1762283498571,0.19768706,101170.0,101150.0,0.7708279]
[1762283498777,0.19768706,101170.0,101160.0,0.1977066]
[1762283498995,0.002,101160.0,101150.0,0.00014486]
[1762283499206,0.1997066,101160.0,101150.0,0.00014486]
[1762283499629,0.1997066,101160.0,101150.0,0.00314486]
[1762283499630,1.27499955,101160.0,101150.0,0.00314486]
[1762283499835,1.20742955,101160.0,101150.0,0.00014486]
[1762283500038,0.63547265,101160.0,101150.0,0.00014486]
[1762283500260,0.19768706,101170.0,101150.0,0.198871]